bitfinex-derivatives/quotes_BNBF0:USTF0_20250710
["timestamp","ask_amount","ask_price","bid_price","bid_amount"]
[1752129195354,2.2300338,672.64,671.99,1.67175651]
[1752129198855,2.2300338,672.64,672.0,1.67175651]
[1752129199259,2.2300338,672.64,671.99,1.67175651]
[1752129200158,2.2300338,672.63,672.0,1.67175651]
[1752129200359,2.2300338,672.65,671.99,1.67175651]
[1752129200861,2.2300338,672.64,671.99,1.67175651]
[1752129202058,2.2300338,672.64,672.0,1.67175651]
[1752129202454,2.2300338,672.64,671.99,1.67175651]
[1752129203058,2.2300338,672.63,672.0,1.67175651]
[1752129203455,2.2300338,672.62,672.0,1.67175651]
[1752129203659,2.2300338,672.61,672.01,1.67175651]
[1752129203853,2.2300338,672.61,672.02,1.67175651]
[1752129205357,2.2300338,672.62,672.01,1.67175651]
[1752129208461,2.2300338,672.6,672.02,1.67175651]
[1752129209063,2.2300338,672.61,672.02,1.67175651]
[1752129209563,2.2300338,672.6,672.02,1.67175651]
[1752129209761,2.2300338,672.6,671.81,2.06279956]
[1752129209762,2.2300338,672.59,672.03,1.67175651]
[1752129210562,2.2300338,672.65,671.98,1.67175651]
[1752129210761,0.25877743,672.71,671.83,1.67175651]
[1752129210959,0.25877743,672.71,671.84,1.67175651]
[1752129214462,0.25877743,672.71,671.85,1.67175651]
[1752129217971,0.25877743,672.71,671.86,1.67175651]
[1752129220368,0.25877743,672.71,671.87,1.67175651]
[1752129220668,0.25877743,672.71,671.95,1.67175651]
[1752129220669,2.2300338,672.7,671.95,1.67175651]
[1752129221271,2.2300338,672.69,671.95,1.67175651]
[1752129221871,2.2300338,672.69,671.96,1.67175651]
[1752129222772,2.2300338,672.66,671.98,1.67175651]
[1752129223872,2.2300338,672.65,671.98,1.67175651]
[1752129225173,2.2300338,672.65,671.82,2.2296838]
[1752129225174,2.2300338,672.64,672.0,1.67175651]
[1752129225373,0.25877743,672.71,671.98,1.67175651]
[1752129225374,2.2300338,672.65,671.98,1.67175651]
[1752129226469,2.2300338,672.65,671.99,1.67175651]
[1752129229875,2.2300338,672.66,671.97,1.67175651]
[1752129232277,2.2300338,672.65,671.98,1.67175651]
[1752129232572,2.2300338,672.69,671.93,1.67175651]
[1752129233375,2.2300338,672.69,671.92,1.67175651]
[1752129233577,2.2300338,672.69,671.93,1.67175651]
[1752129233778,2.2300338,672.69,671.92,1.67175651]
[1752129234477,2.2300338,672.7,671.92,1.67175651]
[1752129235273,2.2300338,672.7,671.81,1.804]
[1752129235274,2.2300338,672.69,671.93,1.67175651]
[1752129235478,2.2300338,672.7,671.92,1.67175651]
[1752129237874,2.2300338,672.7,671.93,1.67175651]
[1752129238475,2.2300338,672.7,671.92,1.67175651]
[1752129239379,2.2300338,672.69,671.93,1.67175651]
[1752129239780,2.2300338,672.69,671.94,2.296]
[1752129240177,2.2300338,672.68,671.94,2.296]
[1752129240381,2.2300338,672.69,671.94,2.296]
[1752129240876,2.2300338,672.69,671.94,3.96775651]
[1752129242280,2.2300338,672.63,671.98,1.67175651]
[1752129243583,2.2300338,672.62,671.99,1.67175651]
[1752129244479,2.2300338,672.6,672.01,1.67175651]
[1752129245185,2.2300338,672.59,672.01,1.67175651]
[1752129245685,2.2300338,672.59,672.02,1.67175651]
[1752129245981,2.2300338,672.59,672.01,1.67175651]
[1752129248482,2.2300338,672.58,672.02,1.67175651]
[1752129250189,2.2300338,672.58,671.94,2.296]
[1752129250190,2.2300338,672.57,672.03,1.67175651]
[1752129250390,2.2300338,672.55,672.04,1.67175651]
[1752129251288,2.2300338,672.55,672.05,1.67175651]
[1752129253188,2.2300338,672.56,672.04,1.67175651]
[1752129253392,2.2300338,672.56,672.03,1.67175651]
[1752129254289,2.2300338,672.55,672.04,1.67175651]
[1752129255594,2.2300338,672.55,672.05,1.67175651]
[1752129255789,2.2300338,672.54,672.05,1.67175651]
[1752129256991,2.2300338,672.56,672.03,1.67175651]
[1752129257997,0.25877743,672.71,672.03,1.67175651]
[1752129257998,2.2300338,672.57,672.03,1.67175651]
[1752129258296,2.2300338,672.58,672.02,1.67175651]
[1752129263098,2.2300338,672.57,672.02,1.67175651]
[1752129263298,0.25884287,672.45,672.03,1.67175651]
[1752129264096,0.25884287,672.45,672.02,1.67175651]
[1752129266698,0.25884287,672.45,672.03,1.67175651]
[1752129267400,0.25884287,672.45,672.02,1.67175651]
[1752129268296,0.25884287,672.45,672.03,1.67175651]
[1752129268502,0.25884287,672.45,672.02,1.67175651]
[1752129269201,0.25884287,672.45,671.98,1.67175651]
[1752129270398,0.25884287,672.45,671.99,1.797]
[1752129270604,0.25884287,672.45,671.99,3.46875651]
[1752129270802,0.25884287,672.45,672.02,1.67175651]
[1752129271097,0.25884287,672.45,672.03,1.67175651]
[1752129271401,0.25884287,672.45,672.01,1.67175651]
[1752129271897,0.25884287,672.45,671.99,1.797]
[1752129272098,2.2300338,672.89,671.99,1.797]
[1752129272399,0.2587909,672.56,671.99,1.797]
[1752129272601,2.2300338,672.75,672.04,1.67175651]
[1752129272799,0.25878705,672.56,672.05,1.67175651]
[1752129273302,0.25878705,672.56,672.04,1.67175651]
[1752129273899,0.25878705,672.56,671.99,1.797]
[1752129273900,0.25878705,672.56,672.11,1.67175651]
[1752129274102,0.25878705,672.56,672.12,1.67175651]
[1752129274300,0.25878705,672.56,672.11,1.67175651]
[1752129274503,0.25878705,672.56,672.1,1.67175651]
[1752129275803,0.25878705,672.56,672.09,1.67175651]
[1752129278305,0.25878705,672.56,672.08,1.67175651]
[1752129284309,0.25878705,672.56,672.09,1.67175651]
[1752129287309,0.25878705,672.56,672.08,1.67175651]
[1752129288516,0.25878705,672.56,672.07,1.67175651]
[1752129288809,0.25878705,672.56,672.08,1.67175651]
[1752129296915,0.25878705,672.56,672.07,1.67175651]
[1752129297718,0.25878705,672.56,671.99,1.797]
[1752129297719,0.25878705,672.56,672.08,1.67175651]
[1752129298515,0.25878705,672.56,672.09,1.67175651]
[1752129298719,0.25878705,672.56,672.1,1.67175651]
[1752129305427,0.25878705,672.56,672.09,1.67175651]
[1752129306322,0.25878705,672.56,672.1,1.67175651]
[1752129309829,0.25878705,672.56,672.09,1.67175651]
[1752129310025,0.25878705,672.56,672.08,1.67175651]
[1752129310629,0.25878705,672.56,672.04,1.67175651]
[1752129310929,0.25878705,672.56,672.03,1.67175651]
[1752129312726,0.25878705,672.56,672.04,2.508]
[1752129320545,0.25878705,672.56,672.05,1.67175651]
[1752129320748,0.25878705,672.56,672.06,1.67175651]
[1752129322849,0.25878705,672.56,672.05,1.67175651]
[1752129323250,0.25878705,672.56,672.04,4.17975651]
[1752129323546,0.25878705,672.56,672.05,1.67175651]
[1752129326248,0.25878705,672.56,672.06,1.67175651]
[1752129328260,0.25878705,672.56,672.07,1.67175651]
[1752129328460,0.25878705,672.56,672.08,1.67175651]
[1752129329364,0.25878705,672.56,672.09,1.67175651]
[1752129330464,0.25878705,672.56,672.1,1.67175651]
[1752129330763,0.25878705,672.56,672.09,1.67175651]
[1752129331267,0.25878705,672.56,672.12,1.67175651]
[1752129331463,0.25878705,672.56,672.15,1.67175651]
[1752129331665,0.25878705,672.56,672.16,1.67175651]
[1752129332062,0.25878705,672.56,672.13,1.67175651]
[1752129332566,0.25878705,672.56,672.12,1.67175651]
[1752129333666,0.25878705,672.56,672.11,1.67175651]
[1752129333868,0.25878705,672.56,672.12,1.67175651]
[1752129334163,0.25878705,672.56,672.13,1.67175651]
[1752129334866,0.25878705,672.56,672.05,1.67175651]
[1752129335869,0.25878705,672.56,672.04,2.508]
[1752129361887,0.25878705,672.56,671.73,1.6725534]
[1752129363187,0.25878705,672.56,671.72,1.6725534]
[1752129363384,0.25878705,672.56,671.74,1.6725534]
[1752129364186,0.25878705,672.56,671.73,1.6725534]
[1752129365087,0.25878705,672.56,671.74,1.574]
[1752129365987,0.25878705,672.56,671.74,3.2465534]
[1752129366187,0.25878705,672.56,671.74,1.574]
[1752129367687,0.25878705,672.56,671.74,3.2465534]
[1752129370387,0.25878705,672.56,671.77,1.6725534]
[1752129371085,0.25878705,672.56,671.78,1.6725534]
[1752129371288,0.25878705,672.56,671.77,1.6725534]
[1752129371489,0.25878705,672.56,671.84,1.6725534]
[1752129374492,0.25878705,672.56,671.85,1.6725534]
[1752129377189,0.25878705,672.56,671.84,1.6725534]
[1752129378895,0.25878705,672.56,671.85,1.6725534]
[1752129379391,0.25878705,672.56,671.84,1.6725534]
[1752129379596,0.25878705,672.56,671.85,1.6725534]
[1752129381298,0.25878705,672.56,671.86,1.6725534]
[1752129382201,2.2298466,672.65,671.87,1.6725534]
[1752129383898,2.2298466,672.63,671.88,1.6725534]
[1752129385900,2.2298466,672.62,671.89,1.6725534]
[1752129386303,2.2298466,672.63,671.88,1.6725534]
[1752129387004,2.2298466,672.63,671.89,1.6725534]
[1752129388804,2.2298466,672.62,671.89,1.6725534]
[1752129389300,2.2298466,672.6,671.91,1.6725534]
[1752129391103,2.2298466,672.59,671.91,1.6725534]
[1752129391505,2.2298466,672.64,671.87,1.6725534]
[1752129392103,2.2298466,672.64,671.88,1.6725534]
[1752129393901,2.2298466,672.63,671.88,1.6725534]
[1752129395109,0.25885731,672.45,671.88,1.6725534]
[1752129395306,0.25885731,672.45,671.89,1.6725534]
[1752129397113,0.25885731,672.45,671.9,1.6725534]
[1752129398911,0.25885731,672.45,671.87,1.6725534]
[1752129399211,0.25885731,672.45,671.88,1.6725534]
[1752129400411,0.25885731,672.45,671.86,1.6725534]
[1752129401314,0.25885731,672.45,671.87,1.6725534]
[1752129401618,0.25885731,672.45,671.85,1.6725534]
[1752129402118,0.25885731,672.45,671.86,1.6725534]
[1752129403719,0.25885731,672.45,671.87,1.6725534]
[1752129407021,0.25885731,672.45,671.87,1.67076996]
[1752129407318,0.25885731,672.45,671.88,1.67076996]
[1752129408719,0.25885731,672.45,671.89,1.67076996]
[1752129409022,0.25885731,672.45,671.9,1.67076996]
[1752129409521,0.25885731,672.45,671.88,1.67076996]
[1752129410222,0.25885731,672.45,671.89,1.67076996]
[1752129411521,0.25885731,672.45,671.91,1.67076996]
[1752129411723,0.25885731,672.45,671.89,1.67076996]
[1752129414621,0.25885731,672.45,671.88,1.67076996]
[1752129415224,0.25885731,672.45,671.89,1.67076996]
[1752129418129,0.25885731,672.45,671.9,1.67076996]
[1752129418930,0.25885731,672.45,671.89,1.67076996]
[1752129419230,0.25885731,672.45,671.9,1.67076996]
[1752129419530,0.25885731,672.45,671.91,1.67076996]
[1752129420233,0.25885731,672.45,671.9,1.67076996]
[1752129421530,0.25885731,672.45,671.91,1.67076996]
[1752129421730,0.25885731,672.45,671.92,1.67076996]
[1752129423936,0.25885731,672.45,671.7,0.25885635]
[1752129423937,0.25885731,672.45,671.93,1.584]
[1752129428535,0.25885731,672.45,671.95,1.67076996]
[1752129428738,0.25885731,672.45,672.02,1.67076996]
[1752129429636,0.25885731,672.45,672.01,1.67076996]
[1752129430238,0.25885731,672.45,672.0,1.67076996]
[1752129430944,0.25885731,672.45,671.99,1.67076996]
[1752129431744,0.25885731,672.45,672.0,1.67076996]
[1752129433339,0.25885731,672.45,671.99,1.67076996]
[1752129436844,0.25885731,672.45,671.98,1.67076996]
[1752129440251,0.25885731,672.45,671.99,1.67076996]
[1752129440850,0.25885731,672.45,672.0,1.67076996]
[1752129443257,0.25885731,672.45,672.02,1.67076996]
[1752129444552,0.25885731,672.45,672.01,1.67076996]
[1752129444956,0.25885731,672.45,671.99,1.67076996]
[1752129445156,0.25885731,672.45,671.85,1.67076996]
[1752129445858,0.25885731,672.45,671.84,1.67076996]
[1752129446251,0.25885731,672.45,671.85,2.144]
[1752129446853,0.25885731,672.45,671.85,3.81476996]
[1752129447257,0.25885731,672.45,671.85,2.144]
[1752129455360,2.2298466,672.38,671.91,1.67076996]
[1752129455564,2.2298466,672.38,671.9,1.67076996]
[1752129456366,2.2298466,672.39,671.89,1.67076996]
[1752129458166,2.2298466,672.4,671.88,1.67076996]
[1752129460071,2.2298466,672.41,671.87,1.67076996]
[1752129460773,2.2298466,672.42,671.86,1.67076996]
[1752129460972,2.2298466,672.4,671.85,3.81476996]
[1752129461172,2.2298466,672.41,671.85,2.144]
[1752129462374,2.2298466,672.43,671.85,2.144]
[1752129462675,2.2298466,672.41,671.85,2.144]
[1752129463274,2.2298466,672.42,671.85,2.144]
[1752129463470,0.25885731,672.45,671.85,2.144]
[1752129463673,2.48870391,672.45,671.85,2.144]
[1752129463876,2.2298466,672.39,671.85,2.144]
[1752129464074,2.2298466,672.36,671.85,2.144]
[1752129464271,2.2298466,672.22,671.85,2.144]
[1752129464675,2.2298466,672.17,671.85,2.144]
[1752129465373,2.2298466,672.16,671.85,2.144]
[1752129466375,2.2298466,672.17,671.85,2.144]
[1752129466672,2.2298466,672.16,671.85,2.144]
[1752129467075,2.2298466,672.15,671.85,2.144]
[1752129467372,2.2298466,672.26,671.85,2.144]
[1752129467575,2.2298466,672.3,671.85,2.144]
[1752129467972,2.2298466,672.34,671.85,2.144]
[1752129468176,2.2298466,672.37,671.85,2.144]
[1752129468675,2.2298466,672.42,671.85,2.144]
[1752129468876,2.2298466,672.27,671.85,2.144]
[1752129469075,2.2298466,672.28,671.85,2.144]
[1752129469278,2.2298466,672.37,671.85,2.144]
[1752129469673,2.2298466,672.38,671.85,2.144]
[1752129469876,2.2298466,672.39,671.85,2.144]
[1752129470173,2.2298466,672.43,671.85,2.144]
[1752129470978,0.25885731,672.45,671.85,2.144]
[1752129479481,2.48870391,672.45,671.85,2.144]
[1752129479685,2.2298466,672.43,671.85,2.144]
[1752129479887,0.25885731,672.45,671.85,2.144]
[1752129480086,2.2298466,672.44,671.85,2.144]
[1752129480485,2.48870391,672.45,671.85,2.144]
[1752129480788,2.2298466,672.43,671.85,2.144]
[1752129480987,2.2298466,672.44,671.85,2.144]
[1752129481384,0.25885731,672.45,671.85,2.144]
[1752129481885,2.48870391,672.45,671.85,2.144]
[1752129482186,0.25885731,672.45,671.85,2.144]
[1752129489197,0.25885731,672.45,671.23,1.67076996]
[1752129489798,0.25885731,672.45,671.22,1.67076996]
[1752129492400,0.25885731,672.45,671.17,1.67076996]
[1752129492696,0.25885731,672.45,671.23,2.004]
[1752129501501,2.48870391,672.45,671.23,2.004]
[1752129502802,2.2298466,672.43,671.23,2.004]
[1752129503200,2.2298466,672.4,671.23,2.004]
[1752129505108,2.2298466,672.39,671.23,2.004]
[1752129507409,2.2298466,672.38,671.23,2.004]
[1752129507614,2.2298466,672.39,671.23,2.004]
[1752129507808,2.2298466,672.38,671.23,2.004]
[1752129508113,2.2298466,672.37,671.23,2.004]
[1752129508809,2.2298466,672.35,671.23,2.004]
[1752129509113,2.2298466,672.33,671.23,2.004]
[1752129509309,2.2298466,672.37,671.23,2.004]
[1752129510110,2.2298466,672.35,671.23,2.004]
[1752129510713,2.2298466,672.39,671.23,2.004]
[1752129511113,2.2298466,672.38,671.23,2.004]
[1752129512113,2.2298466,672.36,671.23,2.004]
[1752129512414,2.2298466,672.43,671.23,2.004]
[1752129513517,2.2298466,672.44,671.23,2.004]
[1752129514014,2.2298466,672.41,671.23,2.004]
[1752129514215,2.2298466,672.39,671.23,2.004]
[1752129514917,2.2298466,672.35,671.23,2.004]
[1752129515114,2.2298466,672.34,671.23,2.004]
[1752129515417,2.2298466,672.32,671.23,2.004]
[1752129516414,2.2298466,672.31,671.23,2.004]
[1752129517215,2.2298466,672.23,671.23,2.004]
[1752129517414,2.2298466,672.22,671.23,2.004]
[1752129517715,2.2298466,672.19,671.23,2.004]
[1752129517916,2.2298466,672.28,671.23,2.004]
[1752129518119,2.2298466,672.17,671.23,2.004]
[1752129518521,2.2298466,671.92,671.23,2.004]
[1752129518720,2.2298466,672.04,671.23,2.004]
[1752129518916,2.2298466,672.03,671.23,2.004]
[1752129519217,2.2298466,671.86,671.23,2.004]
[1752129519517,2.2298466,671.87,671.23,2.004]
[1752129520215,2.2298466,671.84,671.23,2.004]
[1752129520420,2.2298466,671.88,671.23,2.004]
[1752129520821,2.2298466,671.98,671.23,2.004]
[1752129521417,2.2298466,671.97,671.23,2.004]
[1752129522120,0.25885731,672.45,671.23,2.004]
[1752129522121,2.2298466,671.95,671.23,2.004]
[1752129522317,2.2298466,671.96,671.23,2.004]
[1752129523218,2.2298466,671.93,671.23,2.004]
[1752129523520,2.2298466,671.94,671.23,2.004]
[1752129524122,2.2298466,671.92,671.23,2.004]
[1752129524320,2.2298466,671.93,671.23,2.004]
[1752129524621,2.2298466,671.99,671.23,2.004]
[1752129524921,2.2298466,672.07,671.23,2.004]
[1752129525416,2.2298466,672.08,671.23,2.004]
[1752129526223,2.2298466,672.09,671.23,2.004]
[1752129526518,2.2298466,672.1,671.23,2.004]
[1752129527418,2.2298466,672.09,671.23,2.004]
[1752129527723,2.2298466,672.07,671.23,2.004]
[1752129528219,2.2298466,672.08,671.23,2.004]
[1752129529223,2.2298466,672.0,671.23,2.004]
[1752129529425,2.2298466,672.01,671.23,2.004]
[1752129529622,2.2298466,671.97,671.23,2.004]
[1752129530622,2.2298466,671.94,671.23,2.004]
[1752129531226,2.2298466,672.01,671.23,2.004]
[1752129531425,2.2298466,672.02,671.23,2.004]
[1752129531623,2.2298466,672.0,671.23,2.004]
[1752129532424,2.2298466,672.01,671.23,2.004]
[1752129532624,2.2298466,672.02,671.23,2.004]
[1752129533030,2.2298466,672.01,671.23,2.004]
[1752129533229,2.2298466,672.0,671.23,2.004]
[1752129533528,2.2298466,671.97,671.23,2.004]
[1752129533727,2.2298466,672.03,671.23,2.004]
[1752129534231,2.2298466,671.81,671.23,2.004]
[1752129534429,2.2298466,671.83,671.23,2.004]
[1752129534930,2.2298466,671.82,671.23,2.004]
[1752129535326,2.2298466,671.84,671.23,2.004]
[1752129535829,0.25885731,672.45,671.23,2.004]
[1752129535830,2.2298466,671.83,671.23,2.004]
[1752129536329,2.2298466,671.85,671.23,2.004]
[1752129537428,2.2298466,671.87,671.23,2.004]
[1752129538133,2.2298466,671.76,671.23,2.004]
[1752129538428,2.2298466,671.74,671.23,2.004]
[1752129539033,2.2298466,671.79,671.23,2.004]
[1752129539333,2.2298466,671.87,671.23,2.004]
[1752129541133,2.2298466,671.85,671.23,2.004]
[1752129541328,2.2298466,671.87,671.23,2.004]
[1752129542033,2.2298466,671.86,671.23,2.004]
[1752129542430,2.2298466,671.87,671.23,2.004]
[1752129543433,2.2298466,671.88,671.23,2.004]
[1752129543634,2.2298466,671.97,671.23,2.004]
[1752129543830,2.2298466,671.94,671.23,2.004]
[1752129544330,2.2298466,671.98,671.23,2.004]
[1752129544634,2.2298466,671.81,671.23,2.004]
[1752129544829,2.2298466,671.8,671.23,2.004]
[1752129545333,2.2298466,671.82,671.23,2.004]
[1752129545534,2.2298466,671.82,670.45,0.25923332]
[1752129546433,2.2298466,671.84,670.45,0.25923332]
[1752129546729,0.25885731,672.45,670.45,0.25923332]
[1752129546730,2.2298466,671.83,670.45,0.25923332]
[1752129546934,2.2298466,671.81,670.45,0.25923332]
[1752129547535,2.2298466,671.83,670.45,0.25923332]
[1752129547835,2.2298466,671.91,670.45,0.25923332]
[1752129548136,2.2298466,671.83,670.34,0.25934538]
[1752129548329,2.2298466,671.85,670.34,0.25934538]
[1752129548835,2.2298466,671.85,670.35,2.206]
[1752129549535,2.2298466,671.87,670.35,2.206]
[1752129550036,2.2298466,671.83,670.35,2.206]
[1752129550235,2.2298466,671.79,670.35,2.206]
[1752129550436,2.2298466,671.8,670.35,2.206]
[1752129551534,2.2298466,671.81,670.35,2.206]
[1752129552130,2.2298466,671.79,670.35,2.206]
[1752129552431,2.2298466,671.8,670.35,2.206]
[1752129553531,2.2298466,671.76,670.35,2.206]
[1752129554634,2.2298466,671.77,670.35,2.206]
[1752129555334,2.2298466,671.78,670.35,2.206]
[1752129556434,2.2298466,671.79,670.35,2.206]
[1752129556834,2.2298466,671.81,670.35,2.206]
[1752129558136,2.2298466,671.8,670.35,2.206]
[1752129558438,2.2298466,671.86,670.35,2.206]
[1752129558739,2.2298466,671.78,670.35,2.206]
[1752129559036,2.2298466,671.75,670.35,2.206]
[1752129560334,2.2298466,671.76,670.35,2.206]
[1752129561139,2.2298466,671.91,670.35,2.206]
[1752129561334,2.2298466,671.85,670.35,2.206]
[1752129562540,2.2298466,671.86,670.35,2.206]
[1752129564342,2.2298466,671.91,670.35,2.206]
[1752129564642,2.2298466,671.97,670.35,2.206]
[1752129566243,2.2298466,671.96,670.35,2.206]
[1752129566443,2.2298466,671.95,670.35,2.206]
[1752129566645,2.2298466,671.93,670.35,2.206]
[1752129566940,2.2298466,671.86,670.35,2.206]
[1752129567342,2.2298466,671.85,670.35,2.206]
[1752129568240,2.2298466,671.86,670.35,2.206]
[1752129568443,2.2298466,671.85,670.35,2.206]
[1752129568642,2.2298466,671.79,670.35,2.206]
[1752129569142,2.2298466,671.84,670.35,2.206]
[1752129569746,3.3450507,672.05,670.35,2.206]
[1752129569747,2.2298466,671.83,670.35,2.206]
[1752129570148,2.2298466,671.78,670.35,2.206]
[1752129570446,2.2298466,671.77,670.35,2.206]
[1752129570742,2.2298466,671.76,670.35,2.206]
[1752129572346,2.2298466,671.75,670.35,2.206]
[1752129572544,2.2298466,671.74,670.35,2.206]
[1752129573446,2.2298466,671.73,670.35,2.206]
[1752129573649,2.2298466,671.71,670.35,2.206]
[1752129573948,2.2298466,671.69,670.35,2.206]
[1752129574151,0.25885731,672.45,670.35,2.206]
[1752129574152,2.2298466,671.65,670.35,2.206]
[1752129574350,2.2298466,671.6,670.35,2.206]
[1752129574550,2.2298466,671.58,670.35,2.206]
[1752129574957,2.2298466,671.58,670.11,0.25940241]
[1752129575249,2.2298466,671.51,670.11,0.25940241]
[1752129575449,2.2298466,671.52,670.11,0.25940241]
[1752129577349,2.2298466,671.51,670.11,0.25940241]
[1752129577652,2.2298466,671.5,670.12,1.785]
[1752129578253,2.2298466,671.51,670.12,1.785]
[1752129578752,2.2298466,671.5,670.12,1.785]
[1752129579048,2.2298466,671.49,670.12,1.785]
[1752129579253,2.2298466,671.47,670.12,1.785]
[1752129580059,2.2298466,671.46,670.12,1.785]
[1752129581262,2.2298466,671.49,670.12,1.785]
[1752129581462,2.2298466,671.45,670.12,1.785]
[1752129581658,2.2298466,671.4,670.12,1.785]
[1752129582064,2.2298466,671.38,670.12,1.785]
[1752129585462,2.2298466,671.35,670.12,1.785]
[1752129585664,2.2298466,671.37,670.12,1.785]
[1752129586262,2.2298466,671.36,670.12,1.785]
[1752129587166,2.2298466,671.37,670.12,1.785]
[1752129588369,3.3450507,671.57,670.12,1.785]
[1752129588370,2.2298466,671.48,670.12,1.785]
[1752129589463,2.2298466,671.47,670.12,1.785]
[1752129589666,2.2298466,671.32,670.12,1.785]
[1752129589866,2.2298466,671.34,670.12,1.785]
[1752129590369,2.2298466,671.35,670.12,1.785]
[1752129590566,2.2298466,671.33,670.12,1.785]
[1752129590769,7.8051184,672.32,670.12,1.785]
[1752129590770,2.2298466,671.38,670.12,1.785]
[1752129591070,2.2298466,671.42,670.12,1.785]
[1752129591271,2.2298466,671.3,670.12,1.785]
[1752129591471,2.2298466,671.39,670.12,1.785]
[1752129592366,2.2298466,671.38,670.12,1.785]
[1752129592567,5.5750845,672.18,670.12,1.785]
[1752129592568,2.2298466,671.32,670.12,1.785]
[1752129592972,2.2298466,671.31,670.12,1.785]
[1752129593369,2.2298466,671.29,670.12,1.785]
[1752129593670,2.2298466,671.3,670.12,1.785]
[1752129594068,2.2298466,671.4,670.12,1.785]
[1752129594370,2.2298466,671.39,670.12,1.785]
[1752129595366,0.25946333,671.08,670.12,1.785]
[1752129628898,2.2298466,671.04,670.12,1.785]
[1752129629097,2.2298466,671.06,670.12,1.785]
[1752129629398,2.2298466,670.99,670.12,1.785]
[1752129629702,2.2298466,670.99,669.89,1.6572455]
[1752129630002,0.25946333,671.08,669.85,0.25950493]
[1752129630003,2.2298466,670.89,669.85,0.25950493]
[1752129630203,2.2298466,670.9,669.85,0.25950493]
[1752129630497,2.2298466,670.89,669.85,0.25950493]
[1752129631196,2.2298466,670.9,669.85,0.25950493]
[1752129631397,2.2298466,670.84,669.85,0.25950493]
[1752129632004,2.2298466,670.91,669.85,0.25950493]
[1752129632301,2.2298466,670.92,669.85,0.25950493]
[1752129632498,2.2298466,670.9,669.85,0.25950493]
[1752129632700,2.2298466,670.67,669.96,1.6572455]
[1752129633303,2.2298466,670.77,670.06,1.6572455]
[1752129633499,2.2298466,670.76,670.07,1.6572455]
[1752129633698,2.2298466,670.76,670.08,1.6572455]
[1752129634302,2.2298466,670.75,670.08,1.6572455]
[1752129634804,2.2298466,670.77,670.07,3.6502455]
[1752129635708,2.2298466,670.95,670.07,1.993]
[1752129636706,2.2298466,670.96,670.07,1.993]
[1752129638907,2.2298466,671.01,670.07,1.993]
[1752129640407,2.2298466,671.02,670.07,1.993]
[1752129641407,2.2298466,671.06,670.07,1.993]
[1752129641909,2.2298466,671.01,670.07,1.993]
[1752129644306,2.2298466,671.0,670.07,1.993]
[1752129645912,2.2298466,671.01,670.07,1.993]
[1752129646810,2.2298466,671.0,670.07,1.993]
[1752129647712,2.2298466,671.01,670.07,1.993]
[1752129648613,2.2298466,670.98,670.07,1.993]
[1752129651215,2.2298466,670.89,670.07,1.993]
[1752129651516,2.2298466,670.91,670.07,1.993]
[1752129651711,2.2298466,670.89,670.07,1.993]
[1752129652016,2.2298466,670.94,670.07,1.993]
[1752129652214,0.25946333,671.08,670.07,1.993]
[1752129652215,2.2298466,671.05,670.07,1.993]
[1752129653917,2.2298466,671.06,670.07,1.993]
[1752129655120,0.25946333,671.08,670.07,1.993]
[1752129656228,2.2298466,671.03,670.1,1.6572455]
[1752129656522,2.2298466,671.0,670.12,1.6572455]
[1752129656926,2.2298466,671.01,670.12,1.6572455]
[1752129659028,2.2298466,671.02,670.13,1.6572455]
[1752129659824,2.2298466,671.03,670.12,1.6572455]
[1752129660929,0.25946333,671.08,670.07,1.993]
[1752129661131,2.2298466,670.96,670.19,1.6572455]
[1752129661424,2.2298466,670.95,670.2,1.6572455]
[1752129662326,2.2298466,670.99,670.17,1.6572455]
[1752129662527,2.2298466,671.0,670.16,1.6572455]
[1752129662726,2.2298466,670.97,670.19,1.6572455]
[1752129663128,2.2298466,670.95,670.2,1.6572455]
[1752129663327,2.2298466,670.96,670.19,1.6572455]
[1752129663525,2.2298466,670.98,670.18,1.6572455]
[1752129663726,2.2298466,670.98,670.19,1.6572455]
[1752129664024,2.2298466,671.06,670.28,1.6572455]
[1752129664228,0.25946333,671.08,670.33,1.6572455]
[1752129664524,0.25946333,671.08,670.32,1.6572455]
[1752129665129,0.25946333,671.08,670.33,1.664]
[1752129692353,2.46359323,671.08,670.33,1.664]
[1752129692955,0.25946333,671.08,670.33,1.664]
[1752129693154,2.46359323,671.08,670.33,1.664]